[Event "Titled Tuesday Blitz May 11 2021"]
[White "Richter, Nils"]
[Black "Jacobson, Brandon"]
[WhiteFideId "12990809"]
[BlackFideId "30901561"]
[WhiteElo "2289"]
[BlackElo "2362"]
[Result "0-1"]
[Round "01"]
[TimeControl "180+1"]
[Date "2021.05.11"]
[WhiteClock "0:00:03"]
[BlackClock "0:00:10"]

1. d4 {[%clk 0:02:57]}  d5 {[%clk 0:03:00]} 2. c4 {[%clk 0:02:56]}  e6 {[%clk 0:03:00]} 3. Nf3 {[%clk 0:02:55]}  Nf6 {[%clk 0:03:00]} 4. g3 {[%clk 0:02:56]}  h6 {[%clk 0:03:00]} 5. Bg2 {[%clk 0:02:54]}  Bd6 {[%clk 0:03:01]} 6. O-O {[%clk 0:02:54]}  O-O {[%clk 0:03:02]} 7. Qc2 {[%clk 0:02:53]}  b6 {[%clk 0:03:02]} 8. Nbd2 {[%clk 0:02:53]}  Bb7 {[%clk 0:03:02]} 9. Ne5 {[%clk 0:02:49]}  Qe7 {[%clk 0:03:01]} 10. e4 {[%clk 0:02:41]}  c5 {[%clk 0:01:38]} 11. exd5 {[%clk 0:02:22]}  exd5 {[%clk 0:01:39]} 12. Re1 {[%clk 0:02:22]}  cxd4 {[%clk 0:01:31]} 13. Nef3 {[%clk 0:02:17]}  Qc7 {[%clk 0:01:21]} 14. Nxd4 {[%clk 0:02:14]}  a6 {[%clk 0:01:22]} 15. Nf5 {[%clk 0:01:59]}  Nbd7 {[%clk 0:01:16]} 16. Nxd6 {[%clk 0:01:50]}  Qxd6 {[%clk 0:01:17]} 17. b3 {[%clk 0:01:47]}  Rac8 {[%clk 0:01:11]} 18. Bb2 {[%clk 0:01:47]}  Qb8 {[%clk 0:01:11]} 19. Qf5 {[%clk 0:01:45]}  dxc4 {[%clk 0:01:06]} 20. Nxc4 {[%clk 0:01:41]}  Rc5 {[%clk 0:01:03]} 21. Qd3 {[%clk 0:01:32]}  Bxg2 {[%clk 0:01:01]} 22. Kxg2 {[%clk 0:01:33]}  b5 {[%clk 0:00:59]} 23. Ne3 {[%clk 0:01:27]}  Rd8 {[%clk 0:00:50]} 24. Rad1 {[%clk 0:01:24]}  Rcc8 {[%clk 0:00:50]} 25. Qf5 {[%clk 0:01:21]}  Rc5 {[%clk 0:00:43]} 26. Qf3 {[%clk 0:01:20]}  Re8 {[%clk 0:00:38]} 27. Ng4 {[%clk 0:01:13]}  Rxe1 {[%clk 0:00:26]} 28. Rxe1 {[%clk 0:01:11]}  Nd5 {[%clk 0:00:21]} 29. Rd1 {[%clk 0:01:06]}  N7b6 {[%clk 0:00:19]} 30. b4 {[%clk 0:00:41]}  Rc2 {[%clk 0:00:16]} 31. Bd4 {[%clk 0:00:34]}  Qc8 {[%clk 0:00:14]} 32. Bc5 {[%clk 0:00:28]}  Qe6 {[%clk 0:00:14]} 33. Ne3 {[%clk 0:00:23]}  Nxe3+ {[%clk 0:00:14]} 34. Bxe3 {[%clk 0:00:21]}  Nc4 {[%clk 0:00:14]} 35. Rd8+ {[%clk 0:00:19]}  Kh7 {[%clk 0:00:14]} 36. Bc5 {[%clk 0:00:18]}  Qg6 {[%clk 0:00:10]} 37. h4 {[%clk 0:00:16]}  h5 {[%clk 0:00:10]} 38. Rd7 {[%clk 0:00:15]}  f6 {[%clk 0:00:10]} 39. Rd5 {[%clk 0:00:15]}  Ne5 {[%clk 0:00:10]} 40. Qe3 {[%clk 0:00:13]}  Rc4 {[%clk 0:00:10]} 41. a3 {[%clk 0:00:10]}  Qg4 {[%clk 0:00:10]} 42. Rd8 {[%clk 0:00:09]}  Re4 {[%clk 0:00:10]} 43. Qc3 {[%clk 0:00:09]}  Rc4 {[%clk 0:00:10]} 44. Qe3 {[%clk 0:00:09]}  Ng6 {[%clk 0:00:09]} 45. Qe8 {[%clk 0:00:08]}  Nxh4+ {[%clk 0:00:09]} 46. Kh2 {[%clk 0:00:08]}  Nf3+ {[%clk 0:00:09]} 47. Kg2 {[%clk 0:00:08]}  Ne5 {[%clk 0:00:10]} 48. Qg8+ {[%clk 0:00:08]}  Kg6 {[%clk 0:00:10]} 49. Qe8+ {[%clk 0:00:08]}  Nf7 {[%clk 0:00:10]} 50. Be3 {[%clk 0:00:06]}  Qe4+ {[%clk 0:00:10]} 51. Kg1 {[%clk 0:00:06]}  Qxe8 {[%clk 0:00:10]} 52. Rxe8 {[%clk 0:00:06]}  Rc3 {[%clk 0:00:11]} 53. Ra8 {[%clk 0:00:06]}  Rxa3 {[%clk 0:00:12]} 54. Bc5 {[%clk 0:00:06]}  Ra4 {[%clk 0:00:12]} 55. Kg2 {[%clk 0:00:07]}  Ne5 {[%clk 0:00:13]} 56. Ra7 {[%clk 0:00:07]}  Nd3 {[%clk 0:00:09]} 57. Bf8 {[%clk 0:00:07]}  Kf5 {[%clk 0:00:10]} 58. Bxg7 {[%clk 0:00:07]}  Nxb4 {[%clk 0:00:10]} 59. Rf7 {[%clk 0:00:07]}  Nd5 {[%clk 0:00:10]} 60. Rd7 {[%clk 0:00:06]}  Ke6 {[%clk 0:00:11]} 61. Rb7 {[%clk 0:00:06]}  Rc4 {[%clk 0:00:11]} 62. Bf8 {[%clk 0:00:07]}  Rc6 {[%clk 0:00:10]} 63. f4 {[%clk 0:00:05]}  Kf5 {[%clk 0:00:10]} 64. Kf3 {[%clk 0:00:05]}  Rc3+ {[%clk 0:00:10]} 65. Kf2 {[%clk 0:00:06]}  Nb4 {[%clk 0:00:09]} 66. Rb6 {[%clk 0:00:05]}  Nd3+ {[%clk 0:00:09]} 67. Kg2 {[%clk 0:00:06]}  Rc2+ {[%clk 0:00:09]} 68. Kh3 {[%clk 0:00:06]}  Nf2+ {[%clk 0:00:09]} 69. Kh4 {[%clk 0:00:06]}  Ng4 {[%clk 0:00:09]} 70. Kxh5 {[%clk 0:00:03]}  Rh2# {[%clk 0:00:10]} 0-1


[Site "https://www.chess.com"]

[Event "Titled Tuesday Blitz May 11 2021"]
[White "Rozhkov, Viacheslav"]
[Black "Xiong, Jeffery"]
[WhiteFideId "4181484"]
[BlackFideId "2047640"]
[WhiteElo "2324"]
[BlackElo "2724"]
[Result "1-0"]
[Round "01"]
[TimeControl "180+1"]
[Date "2021.05.11"]
[WhiteClock "0:00:11"]
[BlackClock "0:00:09"]

1. e4 {[%clk 0:03:00]}  e6 {[%clk 0:02:46]} 2. d4 {[%clk 0:03:00]}  d5 {[%clk 0:02:46]} 3. e5 {[%clk 0:03:00]}  c5 {[%clk 0:02:44]} 4. c3 {[%clk 0:03:00]}  Ne7 {[%clk 0:02:44]} 5. Nf3 {[%clk 0:03:00]}  Nec6 {[%clk 0:02:44]} 6. a3 {[%clk 0:03:00]}  b6 {[%clk 0:02:45]} 7. Be3 {[%clk 0:02:59]}  Qd7 {[%clk 0:02:45]} 8. Bd3 {[%clk 0:02:59]}  Ba6 {[%clk 0:02:44]} 9. O-O {[%clk 0:02:59]}  Be7 {[%clk 0:02:44]} 10. b4 {[%clk 0:02:58]}  Bxd3 {[%clk 0:02:41]} 11. Qxd3 {[%clk 0:02:58]}  O-O {[%clk 0:02:29]} 12. Nbd2 {[%clk 0:02:56]}  Rc8 {[%clk 0:02:27]} 13. g3 {[%clk 0:02:29]}  h6 {[%clk 0:02:13]} 14. Kg2 {[%clk 0:02:28]}  Qb7 {[%clk 0:02:07]} 15. Rfb1 {[%clk 0:02:26]}  cxd4 {[%clk 0:02:00]} 16. cxd4 {[%clk 0:02:22]}  Nd7 {[%clk 0:02:01]} 17. Nf1 {[%clk 0:02:01]}  Rc7 {[%clk 0:02:01]} 18. g4 {[%clk 0:02:00]}  Rac8 {[%clk 0:02:00]} 19. Ng3 {[%clk 0:01:59]}  b5 {[%clk 0:01:50]} 20. g5 {[%clk 0:01:53]}  hxg5 {[%clk 0:01:51]} 21. Bxg5 {[%clk 0:01:53]}  Nf8 {[%clk 0:01:43]} 22. Qd2 {[%clk 0:01:11]}  Qb6 {[%clk 0:01:33]} 23. Rd1 {[%clk 0:01:05]}  a5 {[%clk 0:01:27]} 24. Qf4 {[%clk 0:00:55]}  axb4 {[%clk 0:01:25]} 25. axb4 {[%clk 0:00:56]}  Ng6 {[%clk 0:01:23]} 26. Qg4 {[%clk 0:00:53]}  Bxb4 {[%clk 0:01:20]} 27. h4 {[%clk 0:00:48]}  Kf8 {[%clk 0:01:11]} 28. h5 {[%clk 0:00:46]}  Nge7 {[%clk 0:01:12]} 29. h6 {[%clk 0:00:42]}  gxh6 {[%clk 0:01:13]} 30. Bxh6+ {[%clk 0:00:35]}  Ke8 {[%clk 0:01:13]} 31. Nh5 {[%clk 0:00:32]}  Bc3 {[%clk 0:01:13]} 32. Nf6+ {[%clk 0:00:32]}  Kd8 {[%clk 0:01:13]} 33. Ng5 {[%clk 0:00:30]}  Nf5 {[%clk 0:01:12]} 34. Nxf7+ {[%clk 0:00:26]}  Rxf7 {[%clk 0:01:13]} 35. Qg8+ {[%clk 0:00:24]}  Kc7 {[%clk 0:00:56]} 36. Qxf7+ {[%clk 0:00:24]}  Nce7 {[%clk 0:00:57]} 37. Rdc1 {[%clk 0:00:20]}  b4 {[%clk 0:00:57]} 38. Bf8 {[%clk 0:00:19]}  Rxf8 {[%clk 0:00:36]} 39. Qxf8 {[%clk 0:00:18]}  Qxd4 {[%clk 0:00:37]} 40. Qe8 {[%clk 0:00:15]}  Qxe5 {[%clk 0:00:13]} 41. Qd7+ {[%clk 0:00:13]}  Kb6 {[%clk 0:00:12]} 42. Qa7+ {[%clk 0:00:13]}  Kb5 {[%clk 0:00:07]} 43. Qa6+ {[%clk 0:00:11]}  Kc5 {[%clk 0:00:08]} 44. Ra5+ {[%clk 0:00:11]}  Kd4 {[%clk 0:00:08]} 45. Rd1+ {[%clk 0:00:11]}  Bd2 {[%clk 0:00:09]} 46. Rxd2+ {[%clk 0:00:11]} 1-0


[Site "https://www.chess.com"]

[Event "Titled Tuesday Blitz May 11 2021"]
[White "Sadhwani, Raunak"]
[Black "Remolar Gallen, Jose"]
[WhiteFideId "35093487"]
[BlackFideId "2215187"]
[WhiteElo "2514"]
[BlackElo "2203"]
[Result "0-1"]
[Round "01"]
[TimeControl "180+1"]
[Date "2021.05.11"]
[WhiteClock "0:00:50"]
[BlackClock "0:00:32"]

1. b3 {[%clk 0:03:00]}  e5 {[%clk 0:02:59]} 2. Bb2 {[%clk 0:03:01]}  Nc6 {[%clk 0:03:00]} 3. e3 {[%clk 0:03:00]}  Nf6 {[%clk 0:03:00]} 4. Nf3 {[%clk 0:02:59]}  e4 {[%clk 0:02:57]} 5. Nd4 {[%clk 0:02:59]}  Bc5 {[%clk 0:02:57]} 6. Nf5 {[%clk 0:02:59]}  O-O {[%clk 0:02:55]} 7. g4 {[%clk 0:02:50]}  d5 {[%clk 0:02:46]} 8. Nxg7 {[%clk 0:02:41]}  Kxg7 {[%clk 0:02:43]} 9. g5 {[%clk 0:02:41]}  d4 {[%clk 0:02:43]} 10. gxf6+ {[%clk 0:02:40]}  Qxf6 {[%clk 0:02:40]} 11. Qh5 {[%clk 0:02:37]}  Ne5 {[%clk 0:02:12]} 12. Be2 {[%clk 0:02:33]}  Bf5 {[%clk 0:01:50]} 13. Rg1+ {[%clk 0:01:43]}  Bg6 {[%clk 0:01:36]} 14. Na3 {[%clk 0:01:43]}  Bxa3 {[%clk 0:01:27]} 15. Bxa3 {[%clk 0:01:44]}  d3 {[%clk 0:01:27]} 16. Bb2 {[%clk 0:01:35]}  Nf3+ {[%clk 0:01:22]} 17. Bxf3 {[%clk 0:01:00]}  Qxb2 {[%clk 0:01:21]} 18. Rd1 {[%clk 0:01:00]}  dxc2 {[%clk 0:01:07]} 19. Bxe4 {[%clk 0:01:00]}  cxd1=Q+ {[%clk 0:00:53]} 20. Qxd1 {[%clk 0:01:01]}  Rad8 {[%clk 0:00:51]} 21. f4 {[%clk 0:01:00]}  Rfe8 {[%clk 0:00:49]} 22. Bc2 {[%clk 0:00:50]}  Rxe3+ {[%clk 0:00:44]} 23. Kf2 {[%clk 0:00:50]}  Rh3 {[%clk 0:00:32]} 0-1


[Site "https://www.chess.com"]

[Event "Titled Tuesday Blitz May 11 2021"]
[White "Selbes, Tarik"]
[Black "Molina, Roberto Junio Brito"]
[WhiteFideId "6302513"]
[BlackFideId "2109450"]
[WhiteElo "2290"]
[BlackElo "2402"]
[Result "0-1"]
[Round "01"]
[TimeControl "180+1"]
[Date "2021.05.11"]
[WhiteClock "0:00:05"]
[BlackClock "0:00:31"]

1. e4 {[%clk 0:02:59]}  c6 {[%clk 0:02:58]} 2. d4 {[%clk 0:02:59]}  d5 {[%clk 0:02:59]} 3. Nc3 {[%clk 0:02:59]}  dxe4 {[%clk 0:02:59]} 4. Nxe4 {[%clk 0:03:00]}  Nd7 {[%clk 0:02:59]} 5. Qe2 {[%clk 0:02:59]}  Ndf6 {[%clk 0:02:57]} 6. c3 {[%clk 0:02:59]}  Nxe4 {[%clk 0:02:57]} 7. Qxe4 {[%clk 0:03:00]}  Nf6 {[%clk 0:02:58]} 8. Qc2 {[%clk 0:03:00]}  Qd5 {[%clk 0:02:57]} 9. Nf3 {[%clk 0:03:00]}  Bf5 {[%clk 0:02:50]} 10. Bd3 {[%clk 0:02:54]}  Bxd3 {[%clk 0:02:49]} 11. Qxd3 {[%clk 0:02:55]}  Qe4+ {[%clk 0:02:49]} 12. Qxe4 {[%clk 0:02:54]}  Nxe4 {[%clk 0:02:50]} 13. O-O {[%clk 0:02:54]}  e6 {[%clk 0:02:50]} 14. Re1 {[%clk 0:02:54]}  Nf6 {[%clk 0:02:50]} 15. Bf4 {[%clk 0:02:54]}  Be7 {[%clk 0:02:48]} 16. Rad1 {[%clk 0:02:52]}  O-O {[%clk 0:02:48]} 17. c4 {[%clk 0:02:52]}  Rfd8 {[%clk 0:02:47]} 18. h3 {[%clk 0:02:47]}  Rac8 {[%clk 0:02:47]} 19. b3 {[%clk 0:02:46]}  a5 {[%clk 0:02:45]} 20. a4 {[%clk 0:02:41]}  Bb4 {[%clk 0:02:41]} 21. Bd2 {[%clk 0:02:38]}  Bxd2 {[%clk 0:02:38]} 22. Rxd2 {[%clk 0:02:39]}  Kf8 {[%clk 0:02:35]} 23. Kf1 {[%clk 0:02:38]}  Rc7 {[%clk 0:02:34]} 24. Re3 {[%clk 0:02:16]}  Ke7 {[%clk 0:02:31]} 25. Red3 {[%clk 0:02:09]}  Rb8 {[%clk 0:02:29]} 26. Ne5 {[%clk 0:02:04]}  b5 {[%clk 0:02:20]} 27. axb5 {[%clk 0:01:59]}  cxb5 {[%clk 0:02:21]} 28. Ra2 {[%clk 0:01:58]}  a4 {[%clk 0:02:03]} 29. cxb5 {[%clk 0:01:52]}  Rxb5 {[%clk 0:01:56]} 30. bxa4 {[%clk 0:01:33]}  Rb1+ {[%clk 0:01:54]} 31. Ke2 {[%clk 0:01:33]}  Nd5 {[%clk 0:01:54]} 32. Kf3 {[%clk 0:00:42]}  Nb4 {[%clk 0:01:50]} 33. Rdd2 {[%clk 0:00:42]}  Nxa2 {[%clk 0:01:49]} 34. Rxa2 {[%clk 0:00:43]}  Rb4 {[%clk 0:01:31]} 35. a5 {[%clk 0:00:35]}  Rxd4 {[%clk 0:01:25]} 36. a6 {[%clk 0:00:34]}  Rd8 {[%clk 0:01:25]} 37. a7 {[%clk 0:00:28]}  Ra8 {[%clk 0:01:25]} 38. Ra6 {[%clk 0:00:28]}  f6 {[%clk 0:01:20]} 39. Nc6+ {[%clk 0:00:28]}  Kd7 {[%clk 0:00:53]} 40. Nb8+ {[%clk 0:00:28]}  Kc8 {[%clk 0:00:54]} 41. Rxe6 {[%clk 0:00:27]}  Raxa7 {[%clk 0:00:49]} 42. Nc6 {[%clk 0:00:20]}  Ra3+ {[%clk 0:00:49]} 43. Kf4 {[%clk 0:00:19]}  Kd7 {[%clk 0:00:49]} 44. Nd4 {[%clk 0:00:15]}  Ra4 {[%clk 0:00:45]} 45. Re4 {[%clk 0:00:13]}  Rcc4 {[%clk 0:00:45]} 46. Ke3 {[%clk 0:00:13]}  g6 {[%clk 0:00:34]} 47. Rh4 {[%clk 0:00:05]}  h5 {[%clk 0:00:31]} 0-1


[Site "https://www.chess.com"]

[Event "Titled Tuesday Blitz May 11 2021"]
[White "Shirazi, Kamran"]
[Black "Samadov, Read"]
[WhiteFideId "2000733"]
[BlackFideId "13417444"]
[WhiteElo "2317"]
[BlackElo "2084"]
[Result "1-0"]
[Round "01"]
[TimeControl "180+1"]
[Date "2021.05.11"]
[WhiteClock "0:00:16"]
[BlackClock "0:00:06"]

1. e3 {[%clk 0:03:00]}  e6 {[%clk 0:02:59]} 2. Ne2 {[%clk 0:03:00]}  c5 {[%clk 0:02:59]} 3. d4 {[%clk 0:03:01]}  Nc6 {[%clk 0:02:59]} 4. d5 {[%clk 0:03:00]}  exd5 {[%clk 0:02:58]} 5. Nbc3 {[%clk 0:03:00]}  Nf6 {[%clk 0:02:58]} 6. Nxd5 {[%clk 0:03:00]}  Nxd5 {[%clk 0:02:58]} 7. Qxd5 {[%clk 0:02:59]}  d6 {[%clk 0:02:58]} 8. Nf4 {[%clk 0:02:58]}  Be7 {[%clk 0:02:56]} 9. c3 {[%clk 0:02:47]}  O-O {[%clk 0:02:56]} 10. Bd3 {[%clk 0:02:37]}  Bf6 {[%clk 0:02:53]} 11. Bc2 {[%clk 0:02:23]}  Ne7 {[%clk 0:02:49]} 12. Qf3 {[%clk 0:02:19]}  Be5 {[%clk 0:02:45]} 13. Nd3 {[%clk 0:02:11]}  Bf6 {[%clk 0:02:44]} 14. Nf4 {[%clk 0:02:10]}  Nc6 {[%clk 0:02:34]} 15. h4 {[%clk 0:02:05]}  Ne5 {[%clk 0:02:33]} 16. Qd5 {[%clk 0:01:54]}  Qe7 {[%clk 0:02:24]} 17. g3 {[%clk 0:01:30]}  Bg4 {[%clk 0:02:12]} 18. Bd1 {[%clk 0:01:22]}  Bd7 {[%clk 0:02:08]} 19. Qxb7 {[%clk 0:01:14]}  Rab8 {[%clk 0:01:43]} 20. Qg2 {[%clk 0:01:05]}  Bc6 {[%clk 0:01:41]} 21. Nd5 {[%clk 0:01:04]}  Qb7 {[%clk 0:01:40]} 22. e4 {[%clk 0:00:51]}  Bxd5 {[%clk 0:01:38]} 23. exd5 {[%clk 0:00:50]}  Nd3+ {[%clk 0:01:38]} 24. Kf1 {[%clk 0:00:42]}  Nxc1 {[%clk 0:01:39]} 25. Rxc1 {[%clk 0:00:42]}  Qxb2 {[%clk 0:01:39]} 26. Rc2 {[%clk 0:00:43]}  Qa1 {[%clk 0:01:36]} 27. Qf3 {[%clk 0:00:42]}  Rb2 {[%clk 0:01:33]} 28. Kg2 {[%clk 0:00:41]}  Qxa2 {[%clk 0:01:31]} 29. Qf5 {[%clk 0:00:36]}  Be5 {[%clk 0:01:19]} 30. h5 {[%clk 0:00:32]}  h6 {[%clk 0:00:45]} 31. Rxb2 {[%clk 0:00:29]}  Qxb2 {[%clk 0:00:45]} 32. Bc2 {[%clk 0:00:30]}  Rd8 {[%clk 0:00:28]} 33. Rb1 {[%clk 0:00:28]}  Qa2 {[%clk 0:00:28]} 34. Rb7 {[%clk 0:00:18]}  Qxd5+ {[%clk 0:00:23]} 35. Be4 {[%clk 0:00:19]}  Qxb7 {[%clk 0:00:22]} 36. Qh7+ {[%clk 0:00:16]}  Kf8 {[%clk 0:00:21]} 37. Bxb7 {[%clk 0:00:17]}  Bxc3 {[%clk 0:00:20]} 38. Bd5 {[%clk 0:00:14]}  Bf6 {[%clk 0:00:19]} 39. Qb1 {[%clk 0:00:13]}  Kg8 {[%clk 0:00:19]} 40. Qb7 {[%clk 0:00:12]}  Rf8 {[%clk 0:00:19]} 41. Qxa7 {[%clk 0:00:13]}  Be5 {[%clk 0:00:19]} 42. Qd7 {[%clk 0:00:13]}  Bf6 {[%clk 0:00:13]} 43. Qf5 {[%clk 0:00:13]}  Rd8 {[%clk 0:00:12]} 44. f4 {[%clk 0:00:14]}  Re8 {[%clk 0:00:12]} 45. g4 {[%clk 0:00:14]}  Rf8 {[%clk 0:00:08]} 46. g5 {[%clk 0:00:14]}  hxg5 {[%clk 0:00:08]} 47. fxg5 {[%clk 0:00:15]}  Be5 {[%clk 0:00:07]} 48. h6 {[%clk 0:00:15]}  gxh6 {[%clk 0:00:07]} 49. Qg6+ {[%clk 0:00:14]}  Kh8 {[%clk 0:00:05]} 50. Qxh6+ {[%clk 0:00:15]}  Kg8 {[%clk 0:00:06]} 51. g6 {[%clk 0:00:16]} 1-0


[Site "https://www.chess.com"]

[Event "Titled Tuesday Blitz May 11 2021"]
[White "Sokolovsky, Yahli"]
[Black "Sasikiran, Krishnan"]
[WhiteFideId "2820242"]
[BlackFideId "5004985"]
[WhiteElo "1770"]
[BlackElo "2552"]
[Result "0-1"]
[Round "01"]
[TimeControl "180+1"]
[Date "2021.05.11"]
[WhiteClock "0:00:08"]
[BlackClock "0:00:33"]

1. b3 {[%clk 0:02:55]}  d5 {[%clk 0:02:58]} 2. Bb2 {[%clk 0:02:55]}  Nf6 {[%clk 0:02:57]} 3. e3 {[%clk 0:02:56]}  c5 {[%clk 0:02:48]} 4. f4 {[%clk 0:02:56]}  a6 {[%clk 0:02:45]} 5. Nf3 {[%clk 0:02:56]}  Bg4 {[%clk 0:02:42]} 6. Be2 {[%clk 0:02:54]}  Nc6 {[%clk 0:02:41]} 7. d3 {[%clk 0:02:39]}  Bxf3 {[%clk 0:02:27]} 8. Bxf3 {[%clk 0:02:40]}  g6 {[%clk 0:02:25]} 9. g4 {[%clk 0:02:34]}  d4 {[%clk 0:02:11]} 10. O-O {[%clk 0:02:11]}  Bg7 {[%clk 0:01:58]} 11. Bxc6+ {[%clk 0:01:39]}  bxc6 {[%clk 0:01:58]} 12. e4 {[%clk 0:01:39]}  h5 {[%clk 0:01:07]} 13. g5 {[%clk 0:01:26]}  Ng4 {[%clk 0:01:05]} 14. Qf3 {[%clk 0:01:06]}  e5 {[%clk 0:00:58]} 15. Na3 {[%clk 0:00:55]}  Ne3 {[%clk 0:00:54]} 16. Rf2 {[%clk 0:00:50]}  O-O {[%clk 0:00:49]} 17. Bc1 {[%clk 0:00:14]}  exf4 {[%clk 0:00:42]} 18. Qxf4 {[%clk 0:00:15]}  f5 {[%clk 0:00:41]} 19. exf5 {[%clk 0:00:10]}  Rxf5 {[%clk 0:00:40]} 20. Qh4 {[%clk 0:00:09]}  Rxg5+ {[%clk 0:00:32]} 21. Kh1 {[%clk 0:00:09]}  Rg1+ {[%clk 0:00:32]} 22. Kxg1 {[%clk 0:00:08]}  Qxh4 {[%clk 0:00:33]} 0-1


[Site "https://www.chess.com"]

[Event "Titled Tuesday Blitz May 11 2021"]
[White "Steven_Rojas"]
[Black "Mamedyarov, Shakhriyar"]
[BlackFideId "13401319"]
[WhiteElo "2462"]
[BlackElo "2716"]
[Result "0-1"]
[Round "01"]
[TimeControl "180+1"]
[Date "2021.05.11"]
[WhiteClock "0:00:05"]
[BlackClock "0:00:35"]

1. d4 {[%clk 0:02:59]}  d5 {[%clk 0:02:57]} 2. c4 {[%clk 0:02:57]}  c5 {[%clk 0:02:57]} 3. e3 {[%clk 0:02:49]}  Nf6 {[%clk 0:02:56]} 4. Nf3 {[%clk 0:02:49]}  e6 {[%clk 0:02:50]} 5. Nc3 {[%clk 0:02:49]}  a6 {[%clk 0:02:46]} 6. a3 {[%clk 0:02:43]}  Nc6 {[%clk 0:02:40]} 7. dxc5 {[%clk 0:02:28]}  Bxc5 {[%clk 0:02:40]} 8. b4 {[%clk 0:02:27]}  Bd6 {[%clk 0:02:40]} 9. cxd5 {[%clk 0:02:24]}  exd5 {[%clk 0:02:41]} 10. Bd3 {[%clk 0:02:20]}  O-O {[%clk 0:02:41]} 11. O-O {[%clk 0:02:20]}  Bg4 {[%clk 0:02:34]} 12. Bb2 {[%clk 0:02:10]}  Rc8 {[%clk 0:02:30]} 13. Rc1 {[%clk 0:02:07]}  Bb8 {[%clk 0:02:29]} 14. Ne2 {[%clk 0:01:57]}  Bxf3 {[%clk 0:02:12]} 15. gxf3 {[%clk 0:01:57]}  Be5 {[%clk 0:02:08]} 16. Rxc6 {[%clk 0:01:19]}  Bxb2 {[%clk 0:02:06]} 17. Rxc8 {[%clk 0:01:18]}  Qxc8 {[%clk 0:02:07]} 18. Qb3 {[%clk 0:01:14]}  Be5 {[%clk 0:02:07]} 19. Kg2 {[%clk 0:01:04]}  g6 {[%clk 0:02:07]} 20. Rc1 {[%clk 0:01:03]}  Qd7 {[%clk 0:02:07]} 21. f4 {[%clk 0:01:00]}  Bb8 {[%clk 0:02:03]} 22. Qb2 {[%clk 0:00:59]}  Qe7 {[%clk 0:01:50]} 23. Ng3 {[%clk 0:00:57]}  Rd8 {[%clk 0:01:49]} 24. Qd4 {[%clk 0:00:57]}  Ne8 {[%clk 0:01:43]} 25. a4 {[%clk 0:00:55]}  Ng7 {[%clk 0:01:43]} 26. b5 {[%clk 0:00:49]}  Ne6 {[%clk 0:01:42]} 27. Qb6 {[%clk 0:00:49]}  d4 {[%clk 0:01:32]} 28. Be4 {[%clk 0:00:45]}  dxe3 {[%clk 0:01:31]} 29. fxe3 {[%clk 0:00:43]}  Rd2+ {[%clk 0:01:29]} 30. Kg1 {[%clk 0:00:30]}  axb5 {[%clk 0:01:14]} 31. Qxb7 {[%clk 0:00:26]}  Qxb7 {[%clk 0:01:05]} 32. Bxb7 {[%clk 0:00:27]}  Ba7 {[%clk 0:01:05]} 33. Nf1 {[%clk 0:00:24]}  Rb2 {[%clk 0:01:00]} 34. axb5 {[%clk 0:00:24]}  Nxf4 {[%clk 0:01:01]} 35. Bf3 {[%clk 0:00:20]}  Nh3+ {[%clk 0:00:59]} 36. Kh1 {[%clk 0:00:20]}  Rxb5 {[%clk 0:00:58]} 37. Kg2 {[%clk 0:00:18]}  Ng5 {[%clk 0:00:57]} 38. Rc2 {[%clk 0:00:16]}  Kg7 {[%clk 0:00:56]} 39. h4 {[%clk 0:00:15]}  Ne6 {[%clk 0:00:52]} 40. Re2 {[%clk 0:00:11]}  Re5 {[%clk 0:00:49]} 41. Kg3 {[%clk 0:00:09]}  Ra5 {[%clk 0:00:49]} 42. Nh2 {[%clk 0:00:07]}  Ra3 {[%clk 0:00:49]} 43. Ng4 {[%clk 0:00:08]}  h5 {[%clk 0:00:47]} 44. Ne5 {[%clk 0:00:07]}  Bxe3 {[%clk 0:00:47]} 45. Nc4 {[%clk 0:00:07]}  Bf4+ {[%clk 0:00:47]} 46. Kg2 {[%clk 0:00:06]}  Rxf3 {[%clk 0:00:42]} 47. Kxf3 {[%clk 0:00:06]}  Nd4+ {[%clk 0:00:42]} 48. Kxf4 {[%clk 0:00:05]}  Nxe2+ {[%clk 0:00:43]} 49. Kf3 {[%clk 0:00:06]}  Nd4+ {[%clk 0:00:43]} 50. Kg3 {[%clk 0:00:06]}  Nf5+ {[%clk 0:00:44]} 51. Kh3 {[%clk 0:00:06]}  Kf6 {[%clk 0:00:44]} 52. Nd2 {[%clk 0:00:06]}  Ke5 {[%clk 0:00:44]} 53. Nf3+ {[%clk 0:00:06]}  Kf4 {[%clk 0:00:43]} 54. Ng5 {[%clk 0:00:07]}  Nd6 {[%clk 0:00:44]} 55. Nh7 {[%clk 0:00:07]}  Ne4 {[%clk 0:00:43]} 56. Kh2 {[%clk 0:00:06]}  Kg4 {[%clk 0:00:39]} 57. Nf8 {[%clk 0:00:04]}  Nf6 {[%clk 0:00:34]} 58. Kg2 {[%clk 0:00:04]}  Kxh4 {[%clk 0:00:34]} 59. Kf3 {[%clk 0:00:05]}  Kg5 {[%clk 0:00:34]} 60. Kg3 {[%clk 0:00:05]}  Kh6 {[%clk 0:00:35]} 61. Kh4 {[%clk 0:00:05]}  Kg7 {[%clk 0:00:35]} 62. Nxg6 {[%clk 0:00:05]}  Kxg6 {[%clk 0:00:35]} 63. Kg3 {[%clk 0:00:05]}  Kg5 {[%clk 0:00:35]} 0-1


[Site "https://www.chess.com"]

[Event "Titled Tuesday Blitz May 11 2021"]
[White "Suleymanli, Suleyman"]
[Black "Sethuraman, S.P."]
[WhiteFideId "13416375"]
[BlackFideId "5021596"]
[WhiteElo "1594"]
[BlackElo "2477"]
[Result "0-1"]
[Round "01"]
[TimeControl "180+1"]
[Date "2021.05.11"]
[WhiteClock "0:00:59"]
[BlackClock "0:00:39"]

1. Nf3 {[%clk 0:03:00]}  d5 {[%clk 0:02:59]} 2. g3 {[%clk 0:03:01]}  c6 {[%clk 0:02:57]} 3. Bg2 {[%clk 0:03:01]}  Bg4 {[%clk 0:02:57]} 4. d4 {[%clk 0:03:01]}  Nd7 {[%clk 0:02:57]} 5. O-O {[%clk 0:03:02]}  e6 {[%clk 0:02:57]} 6. c4 {[%clk 0:03:02]}  Ngf6 {[%clk 0:02:53]} 7. Nc3 {[%clk 0:03:01]}  Be7 {[%clk 0:02:46]} 8. b3 {[%clk 0:03:00]}  O-O {[%clk 0:02:45]} 9. Bb2 {[%clk 0:03:00]}  a5 {[%clk 0:02:38]} 10. a4 {[%clk 0:02:50]}  Bd6 {[%clk 0:02:31]} 11. h3 {[%clk 0:02:47]}  Bh5 {[%clk 0:02:25]} 12. Re1 {[%clk 0:02:44]}  h6 {[%clk 0:02:19]} 13. e4 {[%clk 0:02:36]}  Bb4 {[%clk 0:02:14]} 14. e5 {[%clk 0:02:32]}  Ne4 {[%clk 0:02:13]} 15. Rc1 {[%clk 0:02:27]}  f5 {[%clk 0:02:03]} 16. Rf1 {[%clk 0:02:19]}  Qe7 {[%clk 0:01:49]} 17. Qc2 {[%clk 0:02:10]}  g5 {[%clk 0:01:44]} 18. Nd2 {[%clk 0:02:02]}  Bg6 {[%clk 0:01:21]} 19. Ndxe4 {[%clk 0:01:57]}  dxe4 {[%clk 0:01:16]} 20. Qe2 {[%clk 0:01:53]}  Rad8 {[%clk 0:01:14]} 21. Rfd1 {[%clk 0:01:46]}  c5 {[%clk 0:01:09]} 22. Nb5 {[%clk 0:01:43]}  cxd4 {[%clk 0:01:08]} 23. Bxd4 {[%clk 0:01:40]}  Nc5 {[%clk 0:01:06]} 24. Bxc5 {[%clk 0:01:40]}  Qxc5 {[%clk 0:01:04]} 25. Rxd8 {[%clk 0:01:37]}  Rxd8 {[%clk 0:01:04]} 26. Rd1 {[%clk 0:01:37]}  Rxd1+ {[%clk 0:01:04]} 27. Qxd1 {[%clk 0:01:38]}  Qxe5 {[%clk 0:01:04]} 28. Qd8+ {[%clk 0:01:36]}  Bf8 {[%clk 0:01:04]} 29. Nc7 {[%clk 0:01:30]}  e3 {[%clk 0:01:03]} 30. fxe3 {[%clk 0:01:23]}  Qxe3+ {[%clk 0:01:04]} 31. Kh1 {[%clk 0:01:22]}  Bf7 {[%clk 0:00:54]} 32. Kh2 {[%clk 0:01:08]}  f4 {[%clk 0:00:48]} 33. gxf4 {[%clk 0:01:07]}  Qxf4+ {[%clk 0:00:49]} 34. Kh1 {[%clk 0:01:07]}  Kg7 {[%clk 0:00:44]} 35. Ne8+ {[%clk 0:01:02]}  Bxe8 {[%clk 0:00:39]} 36. Qxe8 {[%clk 0:01:03]}  Qc1+ {[%clk 0:00:39]} 37. Kh2 {[%clk 0:00:59]}  Bd6# {[%clk 0:00:39]} 0-1


[Site "https://www.chess.com"]